Workbook

Sheet Sheet1
A1: WEIGHT PERCENT | E1: Raw Data NORMALIZED to sum to 100%
A3: WELL NAME | B3: Twist About Prospect - Brown, Goshorn & Swann 20277
A4: JOB # | B4: 15-0202
A5: SAMPLE ID | B5: 1 | C5: 2 | D5: 3 | E5: 4 | F5: 5 | G5: 6 | H5: 7 | I5: 8 | J5: 9 | K5: 10 | L5: 11 | M5: 12 | N5: 13 | O5: 14 | P5: 15 | Q5: 16 | R5: 17 | S5: 18 | T5: 19
A6: SAMPLE DEPTH | B6: 1843.10 | C6: 1847.90 | D6: 1851.80 | E6: 1853.00 | F6: 1859.00 | G6: 1864.20 | H6: 1870.00 | I6: 1872.10 | J6: 1879.20 | K6: 1881.80 | L6: 1882.00 | M6: 1883.10 | N6: 1887.50 | O6: 1889.40 | P6: 1895.50 | Q6: 1899.00 | R6: 1936.80 | S6: 1941.00 | T6: 1942.20
A8: NON-CLAY FRACTION
A9: Quartz | B9: 25.83544476 | C9: 36.33977566 | D9: 88.9093173 | E9: 76.73801598 | F9: 86.13223801 | G9: 89.32221574 | H9: 74.15404498 | I9: 88.11027002 | J9: 83.05164602 | K9: 93.21966361 | L9: 71.53074331 | M9: 85.45503162 | N9: 72.68036218 | O9: 49.16595562 | P9: 72.453697 | Q9: 71.97545096 | R9: 60.34402938 | S9: 69.52415616 | T9: 67.21417787
A10: K-Feldspar | B10: 1.213173405 | C10: 0.6040939053 | D10: 0.3197804084 | E10: 1.54697396 | F10: 2.138472598 | G10: 1.379031095 | H10: 5.710054852 | I10: 3.251633618 | J10: 2.178038882 | K10: 0.7083649434 | L10: 2.151714088 | M10: 0.8970750649 | N10: 1.273123775 | O10: 1.668794239 | P10: 1.50069464 | Q10: 0.6031271876 | R10: 0.3721504745 | S10: 0.3044753549 | T10: 0.8143134824
A11: Plagioclase | B11: 0 | C11: 1.433937559 | D11: 0.2920368939 | E11: 0.7324013587 | F11: 0.7023397411 | G11: 0.8676885357 | H11: 0.6101347384 | I11: 0.6485910941 | J11: 1.331243957 | K11: 0.6840092065 | L11: 1.983656158 | M11: 1.346358385 | N11: 2.252766696 | O11: 0.9098883611 | P11: 1.372982316 | Q11: 1.183719129 | R11: 1.946323531 | S11: 5.225383608 | T11: 6.584521076
A12: Apatite | B12: 0 | C12: 0 | D12: 0 | E12: 0 | F12: 0.07683741462 | G12: 0 | H12: 0 | I12: 0 | J12: 0 | K12: 0 | L12: 0.1851514757 | M12: 0 | N12: 0.2523236443 | O12: 3.763122504 | P12: 0.4261751803 | Q12: 0.366922989 | R12: 3.275099004 | S12: 0 | T12: 0.1669621653
A13: Pyrite | B13: 0 | C13: 0 | D13: 0 | E13: 0 | F13: 0.17065258 | G13: 0 | H13: 0 | I13: 0 | J13: 0 | K13: 0.2238360629 | L13: 0.1650615552 | M13: 0.2318732108 | N13: 0 | O13: 0 | P13: 0.1525312048 | Q13: 0 | R13: 0.8063993712 | S13: 0 | T13: 0
A14: Calcite | B14: 72.95138183 | C14: 56.8665419 | D14: 5.999683585 | E14: 4.56848844 | F14: 1.635872049 | G14: 1.943471616 | H14: 4.500015547 | I14: 0.850966775 | J14: 2.397761085 | K14: 2.378503866 | L14: 0 | M14: 2.904850784 | N14: 0.4675808899 | O14: 0.8559298896 | P14: 0.8646329056 | Q14: 1.017770105 | R14: 0 | S14: 0.9068947565 | T14: 0.7853709346
A15: Dolomite | B15: 0 | C15: 0.5230682728 | D15: 0 | E15: 0 | F15: 0.2678682266 | G15: 0 | H15: 0.4062183122 | I15: 0.2863558765 | J15: 0.2998428682 | K15: 0 | L15: 0 | M15: 0 | N15: 0 | O15: 0 | P15: 0 | Q15: 0 | R15: 3.496135678 | S15: 0 | T15: 0
A16: Siderite | B16: 0 | C16: 0 | D16: 0 | E16: 0 | F16: 0 | G16: 0 | H16: 0 | I16: 0 | J16: 0 | K16: 0 | L16: 0 | M16: 0.1994326031 | N16: 1.539173446 | O16: 22.4905258 | P16: 2.327422722 | Q16: 0.9712771911 | R16: 10.84554076 | S16: 1.412203979 | T16: 0
A17: Anatase | B17: 0 | C17: 0 | D17: 0 | E17: 0 | F17: 0 | G17: 0 | H17: 0 | I17: 0 | J17: 0 | K17: 0 | L17: 1.37242251 | M17: 0.2287700722 | N17: 0.9812147222 | O17: 0 | P17: 0 | Q17: 0 | R17: 0 | S17: 0 | T17: 0
A18: TOTAL | B18: =SUM(B9:B17) -> 100 | C18: =SUM(C9:C17) -> 95.7674173 | D18: =SUM(D9:D17) -> 95.52081818 | E18: =SUM(E9:E17) -> 83.58587974 | F18: =SUM(F9:F17) -> 91.12428062 | G18: =SUM(G9:G17) -> 93.51240699 | H18: =SUM(H9:H17) -> 85.38046843 | I18: =SUM(I9:I17) -> 93.14781738 | J18: =SUM(J9:J17) -> 89.25853281 | K18: =SUM(K9:K17) -> 97.21437769 | L18: =SUM(L9:L17) -> 77.3887491 | M18: =SUM(M9:M17) -> 91.26339174 | N18: =SUM(N9:N17) -> 79.44654535 | O18: =SUM(O9:O17) -> 78.85421641 | P18: =SUM(P9:P17) -> 79.09813597 | Q18: =SUM(Q9:Q17) -> 76.11826756 | R18: =SUM(R9:R17) -> 81.0856782 | S18: =SUM(S9:S17) -> 77.37311386 | T18: =SUM(T9:T17) -> 75.56534552
A20: CLAY FRACTION
A21: Mixed-Layer ILLITE/SMECTITE (Includes R3) | B21: 0 | C21: 0.4235717563 | D21: 0.4827879633 | E21: 1.591864216 | F21: 0.681406498 | G21: 0.6803277638 | H21: 1.474205049 | I21: 0.6327100482 | J21: 1.556300906 | K21: 0.3754975316 | L21: 1.670445574 | M21: 0.3363907196 | N21: 1.345704765 | O21: 1.396312651 | P21: 0.8812707393 | Q21: 1.147411307 | R21: 2.208768348 | S21: 1.478980818 | T21: 2.115096564
A22: Illite+Mica | B22: 0 | C22: 2.636570202 | D22: 2.500100179 | E22: 9.050384619 | F22: 4.510028007 | G22: 3.250151179 | H22: 7.570311501 | I22: 2.895634547 | J22: 5.92101502 | K22: 1.293454822 | L22: 13.5454307 | M22: 3.996461795 | N22: 8.332683466 | O22: 7.969799272 | P22: 6.004231821 | Q22: 6.975770737 | R22: 11.11622716 | S22: 9.287651874 | T22: 11.02192241
A23: Chlorite | B23: 0 | C23: 1.172440741 | D23: 1.496293674 | E23: 3.135747252 | F23: 2.127279032 | G23: 1.862759939 | H23: 2.596357317 | I23: 1.113971832 | J23: 2.59119115 | K23: 1.116669955 | L23: 7.39537463 | M23: 3.429000498 | N23: 8.612773288 | O23: 9.021847103 | P23: 10.51418527 | Q23: 13.15299852 | R23: 2.988330243 | S23: 9.828955108 | T23: 11.2976355
A24: Kaolinite | B24: 0 | C24: 0 | D24: 0 | E24: 2.636124171 | F24: 1.557005847 | G24: 0.6943541268 | H24: 2.978657707 | I24: 2.209866194 | J24: 0.67296011 | K24: 0 | L24: 0 | M24: 0.974755242 | N24: 2.262293132 | O24: 2.757824565 | P24: 3.502176204 | Q24: 2.605551873 | R24: 2.600996048 | S24: 2.031298339 | T24: 0
A25: TOTAL | B25: =SUM(B21:B24) -> 0 | C25: =SUM(C21:C24) -> 4.232582699 | D25: =SUM(D21:D24) -> 4.479181816 | E25: =SUM(E21:E24) -> 16.41412026 | F25: =SUM(F21:F24) -> 8.875719384 | G25: =SUM(G21:G24) -> 6.487593009 | H25: =SUM(H21:H24) -> 14.61953157 | I25: =SUM(I21:I24) -> 6.852182621 | J25: =SUM(J21:J24) -> 10.74146719 | K25: =SUM(K21:K24) -> 2.785622308 | L25: =SUM(L21:L24) -> 22.6112509 | M25: =SUM(M21:M24) -> 8.736608255 | N25: =SUM(N21:N24) -> 20.55345465 | O25: =SUM(O21:O24) -> 21.14578359 | P25: =SUM(P21:P24) -> 20.90186403 | Q25: =SUM(Q21:Q24) -> 23.88173244 | R25: =SUM(R21:R24) -> 18.9143218 | S25: =SUM(S21:S24) -> 22.62688614 | T25: =SUM(T21:T24) -> 24.43465448
A27: GRAND TOTAL | B27: =B25+B18 -> 100 | C27: =C25+C18 -> 100 | D27: =D25+D18 -> 100 | E27: =E25+E18 -> 100 | F27: =F25+F18 -> 100 | G27: =G25+G18 -> 100 | H27: =H25+H18 -> 100 | I27: =I25+I18 -> 100 | J27: =J25+J18 -> 100 | K27: =K25+K18 -> 100 | L27: =L25+L18 -> 100 | M27: =M25+M18 -> 100 | N27: =N25+N18 -> 100 | O27: =O25+O18 -> 100 | P27: =P25+P18 -> 100 | Q27: =Q25+Q18 -> 100 | R27: =R25+R18 -> 100 | S27: =S25+S18 -> 100 | T27: =T25+T18 -> 100
A29: % Expandable Layers in I/S | B29: n/a | C29: 13.3726938 | D29: 13.3726938 | E29: 13.05660279 | F29: 13.05660279 | G29: 13.15886753 | H29: 11.21583751 | I29: 13.19295578 | J29: 13.84063245 | K29: 12.74980858 | L29: 15.06780931 | M29: 14.93145632 | N29: 13.3726938 | O29: 13.3726938 | P29: 13.3726938 | Q29: 13.3726938 | R29: 13.3726938 | S29: 12.34074963 | T29: 14.48830912
A30: % I/S to Illite in <1.0um Fraction | B30: 0 | C30: 17.45943007 | D30: 17.45943007 | E30: 15.79647299 | F30: 14.46306989 | G30: 18.54088036 | H30: 19.48328252 | I30: 20.78862325 | J30: 22.18704924 | K30: 23.45770359 | L30: 11.94608123 | M30: 8.378432615 | N30: 17.45943007 | O30: 17.45943007 | P30: 17.45943007 | Q30: 17.45943007 | R30: 17.45943007 | S30: 16.61480796 | T30: 20.39732709
A31: % Expandable I/S Layers in sample | B31: n/a | C31: 0.056642954 | D31: 0.06456175604 | E31: 0.2078433876 | F31: 0.08896853985 | G31: 0.08952342922 | H31: 0.1653444428 | I31: 0.08347315685 | J31: 0.2154018882 | K31: 0.04787521649 | L31: 0.2516995537 | M31: 0.05022803336 | N31: 0.1799569776 | O31: 0.1867246153 | P31: 0.1178496375 | Q31: 0.1534398007 | R31: 0.2952694468 | S31: 0.1825173198 | T31: 0.3064417285
A33: % Fe in Dolomite/Ankerite | R33: 49.8374863
A35: Comments
A38: No TOC analyses were requested for these samples
A40: Anatase believed to be present in some samples but unconfirmed by overlapping with other phases.
